Cogmind - Beta 16 @@@ ROGUE MODE // 2025.11.08 @ 22:45:09 Player: Red Box Result: Destroyed by G9-MGM(R) with Subdweller Machine Gun Performance ------------- Evolutions (0) 0 Regions Visited (3) 600 Robots Destroyed (27) 135 Value Destroyed (712) 712 Prototype IDs (5) 100 Alien Tech Used (0) 0 Bonus (-30) -30 TOTAL SCORE: 1517 Bonus ------- Follower Combat Kills 30 Friendly Fire -60 Cogmind --------- Core Integrity 0/250 Matter 197/300 Energy 265/265 System Corruption 0% Temperature Cool (0) Movement Rolling (95) Ox1 Location -10/Subcaves Parts ------- > --- POWER (1) -------- Improved Ion Engine > --- PROPULSION (2) --- Wheel Wheel > --- UTILITY (2) ------ Large Storage Unit Medium Armor Plating > --- WEAPON (2) ------- Particle Gun > --- INVENTORY (15) --- Improved Ion Engine Improved Ion Engine Improved Ion Engine Subdweller Power Source Light Treads Light Treads Disposable Heat Sink Improved Terrain Scanner Hacking Suite Medium Laser Subdweller Laser Datajack Heavy Hammer Peak State ------------ > --- POWER ------------ Improved Ion Engine > --- PROPULSION ------- Aluminum Leg Aluminum Leg > --- UTILITY ---------- Large Storage Unit Improved Terrain Scanner > --- WEAPON ----------- EM Pulse Gun Heavy Hammer > --- INVENTORY -------- Ion Engine Improved Ion Engine Improved Ion Engine Improved Ion Engine Light Treads Light Treads Wheel Wheel Medium Armor Plating Medium Armor Plating Medium Armor Plating Medium Armor Plating Medium Laser Assault Rifle Plasma Cutter [Rating: 13] Favorites ----------- Power Ion Engine Engine Ion Engine Propulsion Aluminum Leg Leg Aluminum Leg Wheel Wheel Utility Large Storage Unit Device Improved Terrain Scanner Storage Large Storage Unit Protection Medium Armor Plating Weapon Assault Rifle Energy Gun Particle Gun Ballistic Gun Assault Rifle Launcher Rocket Launcher Special Weapon Plasma Cutter Impact Weapon Heavy Hammer Build | -11 -10 -10 -10 ------- Run | Yrd Mat Min Sub Slots Evolved . | . . . . Power . | . . . . Propulsion . | . . . . Utility . | . . . . Weapon . | . . . . Parts Attached 25 | 7 7 8 3 Power 2 | 1 1 . . Engine 2 | 1 1 . . Core . | . . . . Reactor . | . . . . Propulsion 7 | 2 . 3 2 Treads . | . . . . Leg 5 | 2 . 3 . Wheel 2 | . . . 2 Hover . | . . . . Flight . | . . . . Utility 8 | 2 3 2 1 Device 1 | 1 . . . Storage 3 | 1 2 . . Processor . | . . . . Hackware . | . . . . Protection 4 | . 1 2 1 Artifact . | . . . . Weapon 8 | 2 3 3 . Energy Gun 3 | . 1 2 . Energy Cannon . | . . . . Ballistic Gun 2 | 2 . . . Ballistic Cannon . | . . . . Launcher 1 | . . 1 . Special Weapon 1 | . 1 . . Impact Weapon 1 | . 1 . . Slashing Weapon . | . . . . Piercing Weapon . | . . . . Special Melee Weapon . | . . . . Unidentified Prototypes . | . . . . Parts Lost 6 | . . 3 3 Power . | . . . . Propulsion 1 | . . . 1 Utility 3 | . . 2 1 Weapon 2 | . . 1 1 Highest Loss Streak 1 | . . 1 1 To Critical Strikes . | . . . . Average Backups 12 | 4 12 12 11 Power 2 | . 2 3 3 Propulsion 4 | 3 4 4 2 Utility 2 | . 2 2 2 Weapon 2 | . 2 2 2 Tool/Special . | . . . . Unused Backups 12 | . 2 . 10 Power 5 | . 1 . 4 Propulsion 2 | . . . 2 Utility 2 | . . . 2 Weapon 2 | . 1 . 1 Tool/Special 1 | . . . 1 Average Slot Usage (%) 99 | . 99 99 98 Engine 14 | . 14 14 14 Leg 27 | . 28 28 6 Device 7 | . 13 . . Storage 14 | . 14 14 14 Protection 6 | . . 14 13 Energy Gun 16 | . 10 25 17 Ballistic Gun 8 | . 13 1 . Special Weapon 1 | . 2 . . Impact Weapon 1 | . 1 . . Peak Build Rating 13 | 9 13 12 13 Average Rating 10 | 5 10 11 11 On Entrance 7 | . 9 11 11 Avg Prop Armor Cover (%) . | . . . . Naked Turns . | . . . . Heaviest Build 41 | 14 38 39 41 Greatest Support 20 | 20 20 20 20 Greatest Overweight (x) 3 | . 1 1 3 Average Overweight (x) . | . . 1 1 Largest Inventory Capacity 15 | 8 15 15 15 Average Capacity 13 | 7 12 15 15 Most Carried 15 | 7 15 15 13 Average Carried 12 | 4 12 12 11 Final Capacity 15 | 8 15 15 15 Final Carried 14 | 7 14 11 13 Class Distribution -------------------- 100% | Mutant Dominant Class ---------------- Mutant | -10/Materials Mutant | -10/Mines Mutant | -10/Subcaves Resources | -11 -10 -10 -10 ----------- Run | Yrd Mat Min Sub Matter Collected 867 | 213 228 270 156 Remotely . | . . . . Salvage Created 670 | 23 283 282 82 Parts 41 | 3 15 19 4 Haulers Intercepted . | . . . . Recyclers Shooed . | . . . . Parts Field Recycled . | . . . . Retrieved Matter . | . . . . Parts Self-Destructed 2 | . . . 2 Prevented . | . . . . Parts Restored . | . . . . Kills | -11 -10 -10 -10 ------- Run | Yrd Mat Min Sub Combat Hostiles Destroyed 23 | . 8 12 3 Melee 3 | . 2 1 . Guns 10 | . 5 4 1 AOE 7 | . . 5 2 Classes Destroyed 7 | 1 3 1 2 Tunneler 1 | 1 . . . Operator 2 | . . 1 1 Watcher 1 | . 1 . . Swarmer 9 | . 3 6 . Grunt 11 | . 5 6 . Subdweller 3 | . . . 3 Scientist 1 | . . . 1 Best Kill Streak 3 | 1 3 3 3 Combat Bots Only 3 | . 3 3 3 Max Kills in Single Turn 3 | 1 1 3 2 Gunslinging . | . . . . Exploded 3 | . . 3 1 Melee 1 | . 1 1 . Uniques/NPCs Destroyed . | . . . . Combat | -11 -10 -10 -10 -------- Run | Yrd Mat Min Sub Hostile Shots Fired 120 | . 28 73 19 Missed 32 | . 6 18 8 Hits 88 | . 22 55 11 Projectile 88 | . 22 55 11 Damage Taken 1231 | . 204 743 284 Core 273 | . 40 163 70 Absorbed by Shields . | . . . . Regen/Repaired (Parts) 10 | . 10 . . Core Remaining (%) 100 | 100 . . . Volleys Fired 57 | 6 15 26 10 Largest 2 | 2 2 2 2 Hottest 115 | 40 60 115 115 Shots Fired 111 | 12 30 50 19 Gun 99 | 12 30 46 11 Cannon . | . . . . Launcher 12 | . . 4 8 Special . | . . . . Kinetic 47 | 12 27 8 . Thermal 44 | . . 33 11 Explosive 12 | . . 4 8 Electromagnetic 8 | . 3 5 . Robot Hit Streak 7 | 4 3 7 6 Robot Miss Streak 7 | 1 6 7 3 Penetration Max . | . . . . Secondary Targets 4 | . 2 2 . Max Gunslinging Chain 1 | . 1 1 . Shots Hit Robots 70 | 9 20 32 9 Core Hits 32 | 3 7 15 7 Critical Kills . | . . . . Critical Parts Destroyed 3 | . 2 1 . Critical Strikes 5 | . 2 3 . Burn 1 | . . 1 . Corrupt 1 | . . 1 . Smash 3 | . 2 1 . Melee Attacks 14 | . 8 6 . Impact 14 | . 8 6 . Slashing . | . . . . Piercing . | . . . . Sneak Attacks 1 | . 1 . . Combat Hostiles 1 | . 1 . . Follow-up Attacks . | . . . . Damage Inflicted 1980 | 84 476 899 521 Guns 735 | 84 159 408 84 Cannons . | . . . . Explosions 721 | . . 284 437 Melee 524 | . 317 207 . Ramming . | . . . . Kinetic 280 | 84 144 52 . Thermal 401 | . . 317 84 Explosive 721 | . . 284 437 Electromagnetic 54 | . 15 39 . Impact 524 | . 317 207 . Slashing . | . . . . Piercing . | . . . . Highest Corruption . | . . . . Average Corruption . | . . . . Corruption Purged . | . . . . Corruption Blocked . | . . . . Overload Shots . | . . . . Overflow Damage 249 | . 172 72 5 Projectiles . | . . . . Explosions 5 | . . . 5 Melee 244 | . 172 72 . Knockbacks 4 | . 4 . . Impact 3 | . 3 . . Kinetic . | . . . . Secondary 1 | . 1 . . Self-Inflicted Damage 31 | . . . 31 Shots 1 | . . . 1 Rammed . | . . . . Targets Rammed . | . . . . Kicked . | . . . . Crushed . | . . . . Highest Temperature 649 | . 6 649 12 Average Temperature 246 | . 6 261 7 Received Heat Transfer 366 | . 30 330 6 Effects 20 | . . 20 . Shutdowns 4 | . . 4 . Energy Bleed 3 | . . 3 . Interference 1 | . . 1 . Matter Decay 3 | . . 3 . Short Circuit 1 | . . 1 . Damage (minor) 2 | . . 2 . Damage (major) 4 | . . 4 . Damage (core) 2 | . . 2 . Siege Activations . | . . . . Martial Activations . | . . . . Shielding Activations . | . . . . Robots Disrupted . | . . . . Combat Hostiles . | . . . . Robots Corrupted 3 | . 1 2 . Combat Hostiles 3 | . 1 2 . Parts Fried 1 | . . 1 . Impact Corruptions 6 | . 3 3 . Robots Melted . | . . . . Combat Hostiles . | . . . . Parts Melted 2 | . . 2 . Heat Transferred 1073 | . . 851 222 Parts Sabotaged . | . . . . Parts Stolen . | . . . . Parts Stripped . | . . . . Power Chain Reactions . | . . . . Alert | -11 -10 -10 -10 ------- Run | Yrd Mat Min Sub Maximum Alert Level . | . . . . Low Security (%) 100 | 100 100 100 . Level 1 . | . . . . Level 2 . | . . . . Level 3 . | . . . . Level 4 . | . . . . Level 5 . | . . . . High Security . | . . . . Max Security . | . . . . Peak Influence 99 | 5 60 99 . Initial 4 | . . 4 . Average 16 | . 12 21 . Influence Increases 655 | 5 289 361 . Destroy 0b10 Robot/C 400 | . 160 240 . Destroy 0b10 Robot/NC 10 | 5 5 . . Destroy Leader 92 | . 42 50 . Successful Hack 36 | . 36 . . Select Force Hacks 30 | . 30 . . Disable Machine 60 | . 15 45 . Destroy Structure 27 | . 1 26 . Influence Decreases 655 | 5 276 374 . Entered New Map 9 | . . 9 . Time Decay 616 | 5 276 335 . Lost Part 30 | . . 30 . Squads Dispatched 2 | . 2 . . Investigation 2 | . 2 . . Extermination . | . . . . Reinforcement . | . . . . Assault . | . . . . Garrison . | . . . . Intercept . | . . . . Searches Triggered . | . . . . Construction Impeded . | . . . . Haulers Reinforced . | . . . . Active Scanning Responses . | . . . . Cargo Convoy Interrupts . | . . . . Stealth | -11 -10 -10 -10 --------- Run | Yrd Mat Min Sub Distress Signals 2 | . 2 . . Communications Jammed . | . . . . Distress Signals . | . . . . Times Spotted 27 | . 11 11 5 Peak Tracking Total 3 | . 3 3 2 Tactical Retreats . | . . . . Traps | -11 -10 -10 -10 ------- Run | Yrd Mat Min Sub Traps Triggered . | . . . . Indirectly . | . . . . Trap Hack Attempts . | . . . . Triggered . | . . . . Disarmed . | . . . . Reprogrammed . | . . . . Reused . | . . . . Traps Extracted . | . . . . Installed . | . . . . Triggered . | . . . . Machines | -11 -10 -10 -10 ---------- Run | Yrd Mat Min Sub Machines Disabled 4 | . 1 3 . Max in Single Turn 2 | . 1 2 . Machines Repaired . | . . . . Machines Dismantled 1 | . 1 . . Machines Sabotaged . | . . . . Overloaded Fab Kills . | . . . . Hacking | -11 -10 -10 -10 --------- Run | Yrd Mat Min Sub Machines Accessed 12 | . 11 1 . Terminals 9 | . 8 1 . Fabricators . | . . . . Repair Stations 1 | . 1 . . Recycling Units 2 | . 2 . . Scanalyzers . | . . . . Garrison Access . | . . . . Total Hacks 47 | . 45 2 . Successful 33 | . 33 . . Failed 13 | . 11 2 . Catastrophic 1 | . 1 . . Database Lockouts 1 | . 1 . . Manual 34 | . 32 2 . Terminals 37 | . 35 2 . Fabricators . | . . . . Repair Stations 2 | . 2 . . Recycling Units 8 | . 8 . . Scanalyzers . | . . . . Garrison Access . | . . . . Terminal Hacks 14 | . 14 . . Record 2 | . 2 . . Part Schematic 1 | . 1 . . Robot Schematic 1 | . 1 . . Robot Analysis 4 | . 4 . . Prototype ID Bank 3 | . 3 . . Terminal Index 1 | . 1 . . Hauler Manifests 1 | . 1 . . Zone Layout 1 | . 1 . . Fabricator Hacks . | . . . . Repair Station Hacks 2 | . 2 . . Scan Component 1 | . 1 . . Repair 1 | . 1 . . Recycling Unit Hacks 2 | . 2 . . Retrieve Components 2 | . 2 . . Scanalyzer . | . . . . Garrison Access Hacks . | . . . . Unauthorized Hacks 15 | . 15 . . Terminals 11 | . 11 . . Track 2 | . 2 . . Assimilate 2 | . 2 . . Botnet 5 | . 5 . . Disrupt 1 | . 1 . . Operators 1 | . 1 . . Fabricators . | . . . . Repair Stations . | . . . . Recycling Units 4 | . 4 . . Reject 1 | . 1 . . Recyclers 1 | . 1 . . Mask 1 | . 1 . . Tunnel 1 | . 1 . . Scanalyzers . | . . . . Garrison Access . | . . . . Data Cores Recovered . | . . . . Used . | . . . . Hacking Detections 12 | . 11 1 . Full Trace Events . | . . . . Feedback Events . | . . . . Feedback Blocked . | . . . . Robot Schematics Acquired 1 | . 1 . . Robots Built . | . . . . Authchips . | . . . . Time . | . . . . Total Robot Build Rating . | . . . . Part Schematics Acquired 1 | . 1 . . Parts Built . | . . . . Authchips . | . . . . Time . | . . . . Total Part Build Rating . | . . . . Part Studies Acquired . | . . . . Parts Repaired 1 | . 1 . . Time 38 | . 38 . . Parts Recycled . | . . . . Recycled Matter . | . . . . Retrieved Matter . | . . . . Retrieved Components 5 | . 5 . . Parts Scanalyzed . | . . . . Part Schematics Acquired . | . . . . Parts Damaged . | . . . . Bothacking | -11 -10 -10 -10 ------------ Run | Yrd Mat Min Sub Used RIF Installer . | . . . . Robots Hacked . | . . . . Non-combat . | . . . . Combat . | . . . . Robot Hacks Applied . | . . . . Relay Couplers Released . | . . . . Fabnet Peak Effective % . | . . . . Robots Rewired . | . . . . Allies Hacked . | . . . . Hacks Repelled . | . . . . Allies | -11 -10 -10 -10 -------- Run | Yrd Mat Min Sub Total Allies 3 | . 2 1 . Largest Group 2 | . 2 2 2 Highest-Rated Group 41 | . 20 41 41 Highest-Rated Ally 31 | . 10 31 31 Total Orders 23 | . 14 6 3 STAY 12 | . 7 3 2 FOLLOW 11 | . 7 3 1 Ally Attacks 4 | . . . 4 Total Damage 80 | . . . 80 Kills 1 | . . . 1 Allies Corrupted . | . . . . Allies Melted . | . . . . Intel | -11 -10 -10 -10 ------- Run | Yrd Mat Min Sub Active Infowar (turns) 2196 | 6 2190 . . Terrain 2196 | 6 2190 . . Robot Analysis Total 4 | . 4 . . Derelict Logs Recovered 1 | . . 1 . Drone Launches . | . . . . Drone Recoveries . | . . . . Exploration | -11 -10 -10 -10 ------------- Run | Yrd Mat Min Sub Turns Passed 4186 | 83 2256 1669 178 Spaces Moved 1851 | 47 941 750 113 Core 10 | 10 . . . Treads . | . . . . Legs 1745 | 37 941 750 17 Wheels 96 | . . . 96 Hover . | . . . . Flight . | . . . . Fastest Speed 50 | 50 120 190 95 Average Speed 165 | 105 155 190 119 Slowest Speed 190 | 120 190 190 190 Overloaded Moves . | . . . . Propulsion Burnouts . | . . . . Robots Hopped . | . . . . Potential Cave-ins . | . . . . Cave-ins Triggered . | . . . . Exploration Rate (%) 51 | 5 98 96 6 Regions Visited 3 Branch Regions 2 Pre-discovered Areas 1 | . 1 . . Known Exits Taken . | . . . . Unknown Exits Taken 3 | 1 1 1 . Scrap Searched 1 | . . 1 . Spaces Dug 1 | . 1 . . Terrain Destroyed 83 | . 1 26 56 Melee 1 | . 1 . . Projectile . | . . . . AOE 82 | . . 26 56 Terrain Rammed . | . . . . Walls Destroyed . | . . . . Machines Disabled . | . . . . Actions | -11 -10 -10 -10 --------- Run | Yrd Mat Min Sub Total 2765 | 66 1632 932 135 Wait 730 | . 607 123 . Move 1848 | 46 940 749 113 Hop . | . . . . Pick Up 29 | 7 13 4 5 Fast Attach 7 | 7 . . . Attach 9 | . 1 6 2 Detach . | . . . . Swap 28 | . 12 12 4 Drop 13 | . 6 6 1 Fire 57 | 6 15 26 10 Melee 14 | . 8 6 . Ram . | . . . . Kick . | . . . . Crush . | . . . . Escape Stasis . | . . . . Rewire . | . . . . Trap . | . . . . Miscellaneous 30 | . 30 . . Route ------- -11/Scrapyard -10/Materials (discovered 5 exits: [*Mat x3] / *Min x2) -10/Mines (discovered 4 exits: [*Mat x2] / [*Exi] / [*Sub]) -10/Subcaves History --------- Turn | Location | Event 13 | -11/Scrapyard | Discovered new exit (range 16) 84 | -11/Scrapyard | Entered Materials 317 | -10/Materials | Build established: Mutant 471 | -10/Materials | Discovered new exit (range 13) 552 | -10/Materials | Discovered new exit (range 12) 668 | -10/Materials | Discovered new exit (range 5) 784 | -10/Materials | Derelicts attacked the area 1197 | -10/Materials | Discovered new exit (range 12) 1641 | -10/Materials | Discovered new exit (range 5) 1807 | -10/Materials | Central database locked down 2312 | -10/Materials | Repaired Imp. Terrain Scanner 2340 | -10/Materials | Entered Mines 2340 | -10/Mines | Accompanied by 2 allies 2505 | -10/Mines | Received a Rocket Launcher from a helpful Derelict 2743 | -10/Mines | Core integrity fell below 50% 2875 | -10/Mines | Discovered new exit (range 4) 2884 | -10/Mines | Core integrity fell below 20% 3030 | -10/Mines | Learned Materials trap positions 3253 | -10/Mines | Discovered new exit (range 15) 3296 | -10/Mines | Deemed a non-threat by the Exiles lab entrance 3296 | -10/Mines | Discovered new exit (range 5) 3382 | -10/Mines | Discovered new exit (range 6) 3790 | -10/Mines | Received a Mining Laser from a helpful Derelict 4009 | -10/Mines | Entered Subcaves 4009 | -10/Subcaves | Accompanied by 2 allies 4010 | -10/Subcaves | Approached by a straggling Scientist 4187 | -10/Subcaves | Destroyed by G9-MGM(R) with Subdweller Machine Gun Last Messages --------------- 04085_ The unstable cave ceiling collapses. 04086_ Acquired Datajack. 04087_ Acquired 10 matter. 04094_ The unstable cave ceiling collapses. 04095_ Acquired 7 matter. 04096_ Acquired 5 matter. 04102_ The unstable cave ceiling collapses. 04105_ Acquired Sub. Laser. 04107_ Acquired 39 matter. 04109_ Acquired Disposable Heat Sink. 04111_ Subatomizers dissect the Sub. Optics. 04111_ Acquired 32 matter. 04113_ Acquired Sub. Power Source. 04116_ Acquired 15 matter. 04121_ Acquired 5 matter. 04123_ Acquired 9 matter. 04124_ Acquired 5 matter. 04133_ Acquired 7 matter. 04138_ Subatomizers dissect the Sub. Optics. 04172_ Rocket Launcher destroyed. Map ----- +----------------------------------------------------+ | ?????????????????????## # #?????? | | ????????????????????## ### % %????????? | | ???????????????????## # # # #???????????? | | ???????????????????# #??????????????? | | ???????????????????# ## ##?????????????? | | ???????????????????# ## # #?????????????? | | ???????????????????# # # & # ####?????????????? | | ???????????????????# & #???????????????? | | ??????????????????### #???????????????? | | ??????????????????# = ##???????????????? | | ??????????????????### OR ##????????????????? | | ????????????????????## #?????????????????? | | ????????????????????# #?????????????????? | | ????????????????????# ## #?????????????????? | | ????????????????????# ##?????????????????? | | ????????????????##### #?????????????????? | | ???????????????## ## ##?????????????????? | | ???????????????# !& #??????????????????? | | ???????????????# ##### ### #?????????????????? | | ???????????????## ###### ##?##?????????????????? | | ???????????????## ### # & #????????????????????? | | ???????????????# # #????????????????????? | | ???????????????# ##???????????????????? | | ???????????????# #???????????????????? | | ???????????????# ##### #???????????????????? | | ???????????????# ##???#@ #???????????????????? | | ???????????????## #????# ##???????????????????? | | ????????????????## ????## #????????????????????? | | ?????????????????# ????? #????????????????????? | | ?????????????????# ????? ????????????????????? | | ????????????????? ????? #???????????????????? | | ????????????????? ?????## ##???????????????????? | | ?????????????????# ???????##????????????????????? | | ?????????????????## ?????????????????????????????? | | ??????????????????? ?????????????????????????????? | | ??????????????????? ?????????????????????????????? | | ?????????????????????????????????????????????????? | | ?????????????????????????????????????????????????? | | ?????????????????????????????????????????????????? | | ?????????????????????????????????????????????????? | | ?????????????????????????????????????????????????? | | ?????????????????????????????????????????????????? | | ?????????????????????????????????????????????????? | | ?????????????????????????????????????????????????? | | ?????????????????????????????????????????????????? | | ?????????????????????????????????????????????????? | | ?????????????????????????????????????????????????? | | ?????????????????????????????????????????????????? | | ?????????????????????????????????????????????????? | | ?????????????????????????????????????????????????? | +----------------------------------------------------+ Best States ------------- Heat Dissipation 25 Energy Generation 12 Energy Capacity 265 Matter Stores 300 Matter Capacity 300 Sight Range 16 Terrain Scan Range 16 Terrain Scan Density 10 Armor Coverage 225 Evasion (%) 55 Item Schematics ----------------- Hcp. Storage Unit | -10/Materials | Hacked Robot Schematics ------------------ O-16 Technician | -10/Materials | Hacked Fabricated ------------ Nothing Repaired ---------- Imp. Terrain Scanner | 54% | -10/Materials Studied --------- None Alien Tech Used ----------------- None Achievements -------------- None Challenges ------------ None Game ------ Seed FactoryMasterBeamcaster Manual? 0 Play Time 00:30:38 Cumulative 678.5 hours Start 2025.11.08 @ 22:12:52 End 2025.11.08 @ 22:45:09 Sessions 1 Manual Loads 0 Difficulty Rogue Special Mode None Game No. 472 Rogue 472 Adventurer 0 Explorer 0 Win Type - Total 1 Types 1/0/0/0/0/0/0/0/0/0 Lore% 62 Gallery% 66 Achievement% 39 Wizard Run 0 Options --------- Layout 1 ASCII 0 Keyboard 0 Movement Mouse Keybinds 0 Fullscreen 1 Font 20/SmallcapsGlow Map View 54x42 Zoom Use 0% Tactical HUD 1 Map Filters NONE Filters NONE Steam 1 RUN: 67b938a2-e326-4b48-8bf0-af369b488fb3